bitfinex/quotes_BTCUSD_20240915
["timestamp","ask_amount","ask_price","bid_price","bid_amount"]
[1726442567998,0.337333,59289.0,59282.0,0.168684]
[1726442568286,0.33729,59297.0,59271.0,0.04643653]
[1726442568287,0.168669,59288.0,59283.0,0.168681]
[1726442568511,0.33732,59291.0,59283.0,0.168681]
[1726442568512,0.489666,59289.0,59285.0,0.168676]
[1726442568741,0.321,59289.0,59284.0,0.337355]
[1726442568969,0.321,59289.0,59286.0,0.008]
[1726442569199,0.321,59289.0,59287.0,0.16867]
[1726442569435,0.321,59289.0,59288.0,0.506004]
[1726442570155,0.321,59289.0,59279.0,0.337384]
[1726442570400,0.321,59289.0,59285.0,0.337349]
[1726442570624,0.321,59289.0,59286.0,0.168672]
[1726442570868,0.321,59289.0,59284.0,0.337357]
[1726442570869,0.321,59289.0,59288.0,0.014]
[1726442571083,0.489666,59289.0,59288.0,0.014]
[1726442571308,0.321,59289.0,59288.0,0.014]
[1726442571735,0.321,59289.0,59287.0,0.16867]
[1726442571947,0.321,59289.0,59284.0,0.337355]
[1726442571948,0.321,59289.0,59282.0,0.168683]
[1726442572174,0.489665,59289.0,59288.0,0.014]
[1726442572386,0.321,59289.0,59288.0,0.014]
[1726442573073,0.321,59289.0,59288.0,0.182668]
[1726442573300,0.321,59289.0,59288.0,0.520004]
[1726442573581,0.321,59289.0,59288.0,0.85734]
[1726442573797,0.321,59289.0,59288.0,0.506004]
[1726442574264,0.3294,59300.0,59293.0,0.337307]
[1726442574477,0.3294,59300.0,59289.0,0.33733]
[1726442574478,0.3294,59300.0,59279.0,0.023]
[1726442574733,0.498035,59300.0,59288.0,0.014]
[1726442574968,0.3294,59300.0,59288.0,0.014]
[1726442575191,0.498034,59300.0,59293.0,0.337303]
[1726442575412,0.498034,59300.0,59292.0,0.337313]
[1726442575413,0.3294,59300.0,59292.0,0.337313]
[1726442575659,0.3294,59300.0,59296.0,0.168645]
[1726442575902,0.3294,59300.0,59277.0,0.337393]
[1726442575903,0.168664,59290.0,59283.0,0.337363]
[1726442576143,0.168664,59290.0,59280.0,0.36038]
[1726442576144,0.4143354,59300.0,59288.0,0.001638]
[1726442576357,0.168655,59293.0,59288.0,0.170304]
[1726442576814,0.168649,59295.0,59290.0,0.168661]
[1726442577030,0.337279,59298.0,59289.0,0.337327]
[1726442577264,0.337279,59298.0,59291.0,0.168659]
[1726442577528,0.168646,59296.0,59293.0,0.009]
[1726442577751,0.337279,59298.0,59293.0,0.009]
[1726442577752,0.168649,59295.0,59293.0,0.009]
[1726442577961,0.168646,59296.0,59293.0,0.009]
[1726442578180,0.168649,59295.0,59291.0,0.168658]
[1726442578401,0.3294,59300.0,59290.0,0.011]
[1726442578619,0.3294,59300.0,59294.0,0.337301]
[1726442578885,0.3294,59300.0,59288.0,0.001638]
[1726442579106,0.3294,59300.0,59299.0,0.505909]
[1726442579337,0.3294,59300.0,59299.0,0.168636]
[1726442579569,0.3294,59300.0,59299.0,0.505909]
[1726442580505,0.337276,59299.0,59289.0,0.337327]
[1726442580747,0.3294,59300.0,59290.0,0.01]
[1726442580748,0.168654,59293.0,59290.0,0.01]
[1726442580987,0.38061,59300.0,59290.0,0.01]
[1726442580988,0.337274,59299.0,59290.0,0.17866]
[1726442581212,0.38061,59300.0,59290.0,0.01]
[1726442581213,0.505978,59291.0,59290.0,0.01]
[1726442581456,0.505978,59291.0,59288.0,0.001638]
[1726442581457,0.0319312,59298.0,59288.0,0.001638]
[1726442581673,0.337314,59292.0,59288.0,0.001638]
[1726442581893,0.168659,59291.0,59288.0,0.001638]
[1726442582125,0.337311,59293.0,59288.0,0.001638]
[1726442582126,0.168663,59290.0,59288.0,0.001638]
[1726442582371,0.168665,59289.0,59288.0,0.001638]
[1726442582587,0.168658,59292.0,59288.0,0.001638]
[1726442582822,0.337299,59295.0,59288.0,0.001638]
[1726442583063,0.6,59309.0,59288.0,0.001638]
[1726442583064,0.337308,59293.0,59288.0,0.001638]
[1726442583570,0.168665,59289.0,59288.0,0.001638]
[1726442583783,0.50598,59291.0,59290.0,0.011]
[1726442584023,0.50598,59291.0,59288.0,0.001638]
[1726442584024,0.168665,59289.0,59288.0,0.001638]
[1726442584256,0.168665,59289.0,59288.0,0.006638]
[1726442584490,0.337308,59293.0,59288.0,0.001638]
[1726442584725,0.168664,59290.0,59288.0,0.001638]
[1726442584954,0.168665,59290.0,59288.0,0.001638]
[1726442585229,0.505995,59289.0,59288.0,0.010638]
[1726442585460,0.505995,59289.0,59288.0,0.001638]
[1726442585692,0.602,59309.0,59288.0,0.001638]
[1726442585693,0.337319,59291.0,59288.0,0.001638]
[1726442585904,0.337297,59295.0,59288.0,0.001638]
[1726442586125,0.168649,59295.0,59291.0,0.168659]
[1726442586345,0.168655,59293.0,59288.0,0.170304]
[1726442586820,0.168658,59292.0,59288.0,0.175304]
[1726442587029,0.337291,59296.0,59288.0,0.170305]
[1726442587249,0.168658,59292.0,59291.0,0.003]
[1726442587467,0.505971,59292.0,59291.0,0.003]
[1726442587681,0.16866,59291.0,59288.0,0.001638]
[1726442587906,0.16866,59291.0,59288.0,0.006638]
[1726442588114,0.16866,59291.0,59288.0,0.001638]
[1726442589123,0.3294,59300.0,59288.0,0.0524037]
[1726442589362,0.3294,59300.0,59298.0,0.168639]
[1726442589607,0.3294,59300.0,59299.0,0.168636]
[1726442590034,0.3294,59300.0,59289.0,0.023]
[1726442590284,0.01767056,59311.0,59296.0,0.023]
[1726442590285,0.3259,59310.0,59296.0,0.023]
[1726442590515,0.494506,59310.0,59303.0,0.337248]
[1726442590733,0.663113,59310.0,59303.0,0.168624]
[1726442590973,0.3259,59310.0,59302.0,0.337254]
[1726442591424,0.3259,59310.0,59305.0,0.168619]
[1726442591667,0.3259,59310.0,59305.0,0.168618]
[1726442591901,0.168608,59309.0,59305.0,0.168618]
[1726442592140,0.3259,59310.0,59306.0,0.168615]
[1726442592375,0.494507,59310.0,59306.0,0.168615]
[1726442592613,0.3259,59310.0,59306.0,0.168615]
[1726442592856,0.494506,59310.0,59305.0,0.168618]
[1726442593091,0.3259,59310.0,59305.0,0.337237]
[1726442593338,0.3259,59310.0,59306.0,0.168616]
[1726442593580,0.3259,59310.0,59307.0,0.168613]
[1726442593822,0.494505,59310.0,59305.0,0.168617]
[1726442594061,0.168611,59308.0,59305.0,0.008]
[1726442594295,0.168611,59308.0,59304.0,0.168621]
[1726442594296,0.3259,59310.0,59309.0,0.168608]
[1726442594534,0.3259,59310.0,59309.0,0.505824]
[1726442595982,0.01767056,59311.0,59310.0,0.505816]
[1726442596230,0.01767056,59311.0,59310.0,0.843027]
[1726442596471,0.318219,59319.0,59318.0,0.168582]
[1726442597194,0.318219,59319.0,59315.0,0.337182]
[1726442597438,0.318219,59319.0,59318.0,0.168582]
[1726442598449,0.318219,59319.0,59318.0,0.170582]
[1726442598936,0.318219,59319.0,59318.0,0.507747]
[1726442598937,0.000919,59319.0,59318.0,0.507747]
[1726442599182,0.000919,59319.0,59318.0,0.8956867]
[1726442599927,0.000919,59319.0,59318.0,1.205077]
[1726442600176,0.25291058,59333.0,59332.0,0.168543]
[1726442600434,0.25291058,59333.0,59332.0,0.505629]
[1726442600682,0.0031499,59337.0,59336.0,0.168531]
[1726442600939,0.0031499,59337.0,59332.0,0.4213582]
[1726442601185,0.0031499,59337.0,59335.0,0.168532]
[1726442601432,0.0031499,59337.0,59336.0,0.505594]
[1726442601674,0.0031499,59337.0,59336.0,0.842657]
[1726442602194,0.0031499,59337.0,59336.0,0.848657]
[1726442602420,0.0031499,59337.0,59336.0,0.971657]
[1726442602643,0.0031499,59337.0,59336.0,1.4058857]
[1726442603150,0.0039709,59337.0,59336.0,1.4058857]
[1726442603407,0.0039709,59337.0,59336.0,1.4537448]
[1726442603662,0.0016041,59341.0,59320.0,0.337149]
[1726442603910,0.0016041,59341.0,59315.0,0.337181]
[1726442603911,0.0016041,59341.0,59323.0,0.023]
[1726442604138,0.33709,59332.0,59312.0,0.168598]
[1726442604446,0.3008,59340.0,59302.0,0.002]
[1726442604447,0.337092,59331.0,59313.0,0.0168598]
[1726442604685,0.337092,59331.0,59302.0,0.002]
[1726442604686,0.337069,59335.0,59322.0,0.337141]
[1726442604911,0.337069,59335.0,59303.0,0.03]
[1726442604912,0.168523,59339.0,59311.0,0.03]
[1726442605162,0.168523,59339.0,59301.0,0.03]
[1726442605163,0.168543,59332.0,59323.0,0.346135]
[1726442605392,0.337048,59339.0,59328.0,0.168553]
[1726442605611,0.168537,59335.0,59324.0,0.3717395]
[1726442605863,0.3008,59340.0,59323.0,0.009]
[1726442606086,0.3008,59340.0,59325.0,0.168562]
[1726442606087,0.168548,59331.0,59325.0,0.168562]
[1726442606330,0.168548,59331.0,59312.0,0.1]
[1726442606331,0.168548,59330.0,59322.0,0.337141]
[1726442606559,0.337085,59333.0,59318.0,0.337161]
[1726442606560,0.337093,59331.0,59318.0,0.337161]
[1726442606804,0.337093,59331.0,59319.0,0.023]
[1726442606805,0.0674178,59331.0,59319.0,0.023]
[1726442607081,0.0016041,59341.0,59319.0,0.023]
[1726442607082,0.0016041,59341.0,59340.0,0.50556]
[1726442607543,0.0016041,59341.0,59331.0,0.123]
[1726442607770,0.0016041,59341.0,59333.0,0.023]
[1726442608006,0.0016041,59341.0,59323.0,0.03]
[1726442608007,0.0016041,59341.0,59325.0,0.1]
[1726442608224,0.1701221,59341.0,59335.0,0.168534]
[1726442608470,0.1701221,59341.0,59340.0,0.007]
[1726442608471,0.1711221,59341.0,59340.0,0.007]
[1726442608688,0.168522,59340.0,59334.0,0.168536]
[1726442608910,0.3386431,59341.0,59333.0,0.003]
[1726442609159,0.00421322,59340.0,59327.0,0.33711]
[1726442609644,0.00421322,59340.0,59327.0,0.0674242]
[1726442609648,0.00421322,59340.0,59321.0,0.337148]
[1726442609865,0.168546,59331.0,59323.0,0.337136]
[1726442610085,0.168541,59333.0,59308.0,0.337221]
[1726442610319,0.168541,59333.0,59305.0,0.0669242]
[1726442610320,0.337066,59336.0,59327.0,0.168555]
[1726442610546,0.168535,59335.0,59327.0,0.168555]
[1726442611009,0.168535,59335.0,59333.0,0.007]
[1726442611451,0.1885,59339.0,59313.0,0.337194]
[1726442611695,0.001,59335.0,59331.0,0.337088]
[1726442611958,0.001,59335.0,59331.0,0.168543]
[1726442612196,0.001,59335.0,59328.0,0.337104]
[1726442612410,0.002,59335.0,59333.0,0.175539]
[1726442612633,0.168528,59337.0,59330.0,0.168547]
[1726442612875,0.168531,59337.0,59328.0,0.337104]
[1726442613096,0.168531,59337.0,59330.0,0.168548]
[1726442613315,0.168532,59336.0,59330.0,0.168548]
[1726442613561,0.168529,59337.0,59331.0,0.168545]
[1726442614006,0.001,59335.0,59331.0,0.175545]
[1726442614241,0.001,59335.0,59329.0,0.337101]
[1726442614242,0.001,59335.0,59332.0,0.168542]
[1726442614507,0.001,59335.0,59325.0,0.337124]
[1726442614747,0.001,59335.0,59330.0,0.006]
[1726442615007,0.001,59336.0,59320.0,0.337151]
[1726442615223,0.001,59336.0,59335.0,0.167534]
[1726442615444,0.1885,59339.0,59337.0,0.168528]
[1726442615667,0.1885,59339.0,59334.0,0.337074]
[1726442615942,0.1885,59339.0,59335.0,0.337066]
[1726442616155,0.1885,59339.0,59332.0,0.337081]
[1726442616600,0.1885,59339.0,59332.0,0.337085]
[1726442617052,0.1885,59339.0,59331.0,0.001642]
[1726442617341,0.357023,59339.0,59335.0,0.168533]
[1726442617550,0.1885,59339.0,59335.0,0.168533]
[1726442618039,0.1885,59339.0,59334.0,0.168536]
[1726442618283,0.001,59336.0,59335.0,0.008]
[1726442618517,0.1885,59339.0,59336.0,0.168531]
[1726442618757,0.357025,59339.0,59335.0,0.004]
[1726442618989,0.357023,59339.0,59334.0,0.168536]
[1726442619228,0.1885,59339.0,59334.0,0.341072]
[1726442619466,0.1885,59339.0,59336.0,0.168529]
[1726442619779,0.1885,59339.0,59337.0,0.168528]
[1726442620020,0.1885,59339.0,59336.0,0.16853]
[1726442620739,0.16853,59337.0,59333.0,0.168539]
[1726442620978,0.1885,59339.0,59331.0,0.001642]
[1726442621447,0.505587,59337.0,59336.0,0.004]
[1726442621892,0.505587,59337.0,59331.0,0.001642]
[1726442621893,0.16854,59333.0,59331.0,0.001642]
[1726442622158,0.337068,59336.0,59333.0,0.007]
[1726442622391,0.338057,59337.0,59331.0,0.001642]
[1726442622603,0.168532,59336.0,59332.0,0.168542]
[1726442622829,0.168538,59334.0,59331.0,0.001642]
[1726442623297,0.001,59337.0,59333.0,0.168538]
[1726442623298,0.16953,59337.0,59333.0,0.168538]
[1726442623524,0.16953,59337.0,59331.0,0.507275]
[1726442623737,0.168531,59336.0,59331.0,0.338732]
[1726442623960,0.001,59337.0,59331.0,0.338732]
[1726442624208,0.001,59337.0,59331.0,0.011642]
[1726442624429,0.001,59337.0,59336.0,0.168531]
[1726442624683,0.1885,59339.0,59336.0,0.337063]
[1726442624936,0.1885,59339.0,59338.0,0.504578]
[1726442625181,0.0016041,59341.0,59340.0,0.16852]
[1726442625869,0.0016041,59341.0,59338.0,0.337051]
[1726442625870,0.0016041,59341.0,59338.0,0.505574]
[1726442626091,0.0016041,59341.0,59339.0,0.168523]
[1726442626354,0.0016041,59341.0,59335.0,0.337068]
[1726442626594,0.0016041,59341.0,59338.0,0.168524]
[1726442626834,0.01926138,59341.0,59338.0,0.168524]
[1726442627054,0.001,59339.0,59338.0,0.168524]
[1726442627344,0.01926138,59341.0,59338.0,0.168524]
[1726442627566,0.02026138,59341.0,59339.0,0.168523]
[1726442627787,0.01926138,59341.0,59340.0,0.16852]
[1726442628003,0.01926138,59341.0,59340.0,0.8426]
[1726442628251,0.02026138,59341.0,59340.0,0.8426]
[1726442629663,0.02026138,59341.0,59340.0,1.17964]
[1726442629878,0.01926138,59341.0,59340.0,0.8426]
[1726442630109,0.02026138,59341.0,59340.0,1.19064]
[1726442630565,0.01926138,59341.0,59340.0,1.17964]
[1726442630783,0.02026138,59341.0,59340.0,1.19364]
[1726442631032,0.02026138,59341.0,59340.0,1.20264]
[1726442631236,0.02026138,59341.0,59340.0,1.21664]
[1726442631453,0.02126138,59341.0,59340.0,1.21664]
[1726442631670,0.02026138,59341.0,59340.0,1.20264]
[1726442631924,0.02126138,59341.0,59340.0,1.21664]
[1726442635587,0.02126138,59341.0,59340.0,1.65368]
[1726442636001,0.02126138,59341.0,59340.0,1.31664]
[1726442637088,0.02126138,59341.0,59340.0,0.014]
[1726442637522,0.18977838,59341.0,59340.0,0.014]
[1726442637737,0.02126138,59341.0,59340.0,0.014]
[1726442638148,0.02126138,59341.0,59340.0,0.18252]
[1726442638566,0.02126138,59341.0,59340.0,0.014]
[1726442638786,1.02711338,59341.0,59340.0,0.014]
[1726442639001,0.69007838,59341.0,59340.0,0.014]
[1726442639428,0.52156138,59341.0,59340.0,0.014]
[1726442639677,0.33976138,59341.0,59340.0,0.18252]
[1726442639879,0.33976138,59341.0,59340.0,0.014]
[1726442640335,0.53278713,59341.0,59340.0,0.014]
[1726442640543,0.69930513,59341.0,59335.0,0.168534]
[1726442640772,0.36227013,59341.0,59333.0,0.168538]
[1726442641009,0.53178713,59341.0,59340.0,0.013]
[1726442641232,0.33776138,59341.0,59331.0,0.001642]
[1726442641470,0.33776138,59341.0,59340.0,0.51956]
[1726442641471,0.33876138,59341.0,59340.0,0.51956]
[1726442641934,0.33958238,59341.0,59340.0,0.51956]
[1726442642128,0.02108238,59341.0,59340.0,0.5716802]
[1726442642343,0.02108238,59341.0,59340.0,0.51956]
[1726442642791,0.02108238,59341.0,59340.0,0.8566]
[1726442643003,0.02108238,59341.0,59340.0,0.51956]
[1726442643424,0.02108238,59341.0,59340.0,0.8796]
[1726442643675,0.02108238,59341.0,59340.0,1.21664]
[1726442643912,0.02108238,59341.0,59340.0,1.3384682]
[1726442644168,0.02108238,59341.0,59340.0,1.7755082]
[1726442644584,0.02008238,59341.0,59340.0,1.7615082]
[1726442644795,0.02108238,59341.0,59340.0,1.4334682]
[1726442645235,0.02108238,59341.0,59340.0,1.30264]
[1726442645452,0.02208238,59341.0,59340.0,1.31164]
[1726442646734,0.02208238,59341.0,59340.0,1.64868]
[1726442648077,0.02208238,59341.0,59340.0,1.31164]
[1726442649153,0.02208238,59341.0,59340.0,1.64868]
[1726442649362,0.02208238,59341.0,59340.0,1.8137122]
[1726442650459,0.02208238,59341.0,59340.0,1.8157122]
[1726442650662,0.00011,59344.0,59343.0,1.17958]
[1726442650880,0.00011,59344.0,59343.0,1.30258]
[1726442651313,0.00011,59344.0,59343.0,1.639603]
[1726442651539,0.00011,59344.0,59343.0,1.33183776]
[1726442651759,0.00011,59344.0,59343.0,1.66886076]
[1726442652004,0.00011,59344.0,59343.0,1.68286076]
[1726442652217,0.00011,59344.0,59343.0,1.34583776]
[1726442652436,0.00011,59344.0,59343.0,1.68286076]
[1726442652651,0.00011,59344.0,59343.0,1.34583776]
[1726442652868,0.00011,59344.0,59343.0,1.68286076]
[1726442653085,0.00011,59344.0,59343.0,1.68486076]
[1726442653293,0.00011,59344.0,59343.0,1.68286076]
[1726442654442,0.00011,59344.0,59343.0,1.66886076]
[1726442654648,0.00011,59344.0,59343.0,1.68286076]
[1726442654881,0.00011,59344.0,59343.0,1.66886076]
[1726442655304,0.00011,59344.0,59343.0,1.68286076]
[1726442656778,0.00011,59344.0,59343.0,1.67086076]
[1726442657195,0.00011,59344.0,59343.0,1.68286076]
[1726442657419,0.00011,59344.0,59343.0,1.66886076]
[1726442657654,0.00011,59344.0,59343.0,1.68286076]
[1726442661399,0.000818,59347.0,59346.0,2.040453]
[1726442661400,1e-06,59347.0,59346.0,2.040453]
[1726442661605,1e-06,59347.0,59346.0,2.2074852]
[1726442662250,1e-06,59347.0,59346.0,2.5444912]
[1726442662459,0.000818,59351.0,59350.0,1.855406]
[1726442662697,0.000818,59351.0,59350.0,2.012326]
[1726442663555,1e-06,59351.0,59350.0,2.012326]
[1726442663759,0.0039979,59359.0,59358.0,1.675141]
[1726442663972,0.0039979,59359.0,59358.0,1.673141]
[1726442664198,0.0039979,59359.0,59358.0,1.302283]
[1726442664429,0.0039979,59359.0,59358.0,0.865345]
[1726442665084,0.0039979,59359.0,59358.0,0.879345]
[1726442665296,0.0039979,59359.0,59358.0,0.519407]
[1726442665686,0.0039979,59359.0,59358.0,0.9419809]
[1726442666142,0.0039979,59359.0,59358.0,0.856345]
[1726442666361,0.0039979,59359.0,59358.0,0.505407]
[1726442666861,0.0039979,59359.0,59358.0,0.519407]
[1726442667096,0.0039979,59359.0,59358.0,0.842345]
[1726442667325,0.0039979,59359.0,59358.0,0.168469]
[1726442667558,0.0039979,59359.0,59358.0,0.182469]
[1726442667782,0.0039979,59359.0,59356.0,0.336948]
[1726442667783,0.0039979,59359.0,59356.0,0.168472]
[1726442668028,0.0039979,59359.0,59338.0,0.338688]
[1726442668029,0.0039979,59359.0,59350.0,0.336983]
[1726442668250,0.0039979,59359.0,59338.0,0.338688]
[1726442668251,0.168496,59349.0,59338.0,0.338688]
[1726442668477,0.00421238,59352.0,59338.0,0.001642]
[1726442668698,0.3278,59358.0,59338.0,0.001642]
[1726442668699,0.168506,59345.0,59340.0,0.168519]
[1726442668916,0.1949,59344.0,59340.0,0.168519]
[1726442669902,0.1949,59344.0,59341.0,0.170159]
[1726442670121,0.1949,59344.0,59341.0,0.001642]
[1726442670361,0.168512,59343.0,59341.0,0.008642]
[1726442670808,0.168514,59342.0,59341.0,0.001642]
[1726442671055,0.168517,59342.0,59338.0,0.001642]
[1726442671760,0.3278,59343.0,59338.0,0.001642]
[1726442672215,0.3278,59343.0,59338.0,0.170165]
[1726442672432,0.3278,59343.0,59338.0,0.001642]
[1726442672656,0.3288,59343.0,59341.0,0.008]
[1726442672874,0.3278,59343.0,59338.0,0.001642]
[1726442673103,0.168516,59342.0,59338.0,0.170167]
[1726442673403,0.168516,59342.0,59338.0,0.010642]
[1726442673628,0.168516,59342.0,59338.0,0.001642]
[1726442673842,0.168516,59342.0,59338.0,0.009642]
[1726442674056,0.168516,59342.0,59338.0,0.001642]
[1726442674272,0.168516,59342.0,59338.0,0.009642]
[1726442674491,0.001,59342.0,59338.0,0.178167]
[1726442674702,0.001,59342.0,59339.0,0.168522]
[1726442674935,0.168518,59341.0,59338.0,0.009642]
[1726442675162,0.168523,59339.0,59338.0,0.009642]
[1726442675402,0.00521296,59342.0,59329.0,0.337102]
[1726442675403,0.001,59342.0,59329.0,0.337102]
[1726442675651,0.168533,59336.0,59329.0,0.337102]
[1726442676148,0.168534,59335.0,59331.0,0.170186]
[1726442676599,0.168532,59336.0,59332.0,0.168542]
[1726442676844,0.168532,59336.0,59331.0,0.001642]
[1726442677086,0.001,59336.0,59331.0,0.015642]
[1726442677327,0.168543,59332.0,59331.0,0.015642]
[1726442677567,0.505629,59332.0,59331.0,0.001642]
[1726442677832,0.001,59335.0,59324.0,0.168563]
[1726442678089,0.01765589,59339.0,59316.0,0.337174]
[1726442678341,0.337054,59338.0,59314.0,0.002]
[1726442678583,0.01765589,59339.0,59316.0,0.337175]
[1726442678842,0.3278,59343.0,59328.0,0.002]
[1726442679085,0.01765463,59338.0,59328.0,0.023]
[1726442679317,0.01765463,59338.0,59337.0,0.505585]
[1726442679573,0.3278,59343.0,59342.0,0.505543]
[1726442680319,0.3278,59343.0,59342.0,0.842572]
[1726442680756,0.000821,59344.0,59343.0,0.842557]
[1726442681275,0.000821,59344.0,59343.0,0.841557]
[1726442681507,0.000821,59344.0,59343.0,1.17858]
[1726442681752,0.000821,59344.0,59343.0,0.841557]
[1726442681994,0.000821,59344.0,59343.0,0.840557]
[1726442682465,0.000821,59344.0,59343.0,1.755963]
[1726442682687,0.000821,59344.0,59343.0,1.757963]
[1726442683623,0.001821,59344.0,59343.0,1.771963]
[1726442683864,0.001821,59344.0,59343.0,1.757963]
[1726442684099,0.001821,59344.0,59343.0,1.771963]
[1726442684320,0.002821,59344.0,59343.0,1.771963]
[1726442684535,0.002821,59344.0,59343.0,2.094986]
[1726442684536,0.000821,59344.0,59343.0,2.094986]
[1726442684795,0.000821,59344.0,59343.0,1.769963]
[1726442684796,0.001821,59344.0,59343.0,1.769963]
[1726442685002,0.001821,59344.0,59343.0,1.637603]
[1726442685451,0.002821,59344.0,59343.0,1.651603]
[1726442686170,0.002821,59344.0,59343.0,1.653603]
[1726442686437,0.002821,59344.0,59343.0,1.651603]
[1726442686665,0.000821,59344.0,59343.0,1.637603]
[1726442687099,0.001821,59344.0,59343.0,1.651603]
[1726442687778,0.001821,59344.0,59343.0,1.653603]
[1726442688717,0.001821,59344.0,59343.0,1.651603]
[1726442688977,0.001821,59344.0,59343.0,1.653603]
[1726442689628,0.001821,59344.0,59343.0,1.655245]
[1726442690053,0.001821,59344.0,59343.0,1.8207695]
[1726442690298,0.001821,59344.0,59343.0,2.1577925]
[1726442690503,0.001821,59344.0,59343.0,2.1917125]
[1726442691699,0.45046568,59368.0,59343.0,2.1917125]
[1726442691700,0.0038979,59377.0,59351.0,0.03]
[1726442691952,0.0038979,59377.0,59372.0,0.168429]
[1726442691953,0.25591558,59373.0,59372.0,0.168429]
[1726442692199,0.25591558,59373.0,59372.0,1.23077146]
[1726442692200,0.0031499,59373.0,59372.0,1.23077146]
[1726442692507,0.0031499,59373.0,59372.0,1.56763046]
[1726442692687,0.0031499,59373.0,59372.0,1.202006]
[1726442693655,0.0031499,59373.0,59372.0,1.216006]
[1726442700631,0.0031499,59373.0,59372.0,0.856147]
[1726442701029,0.01118331,59373.0,59372.0,1.193006]
[1726442701484,0.01118331,59373.0,59372.0,1.6491656]
[1726442701916,0.0031499,59373.0,59372.0,1.4123066]
[1726442702132,0.0031499,59373.0,59372.0,1.4353066]
[1726442702351,0.0031499,59373.0,59372.0,1.4213066]
[1726442702559,0.0039709,59373.0,59372.0,1.4213066]
[1726442703281,0.28373204,59380.0,59379.0,0.842047]
[1726442703715,0.2917722,59380.0,59379.0,1.25385536]
[1726442703934,0.00804016,59380.0,59379.0,1.27685536]
[1726442704390,0.3029854,59380.0,59379.0,0.91703636]
[1726442705043,0.3029854,59380.0,59379.0,0.92903636]
[1726442705738,0.00804016,59380.0,59379.0,0.180409]
[1726442705964,0.3029854,59380.0,59379.0,0.180409]
[1726442706217,0.3029854,59380.0,59379.0,0.517228]
[1726442706867,0.00804016,59380.0,59379.0,1.313866]
[1726442707085,0.00804016,59380.0,59379.0,1.4452526]
[1726442707299,0.00011,59386.0,59385.0,0.505177]
[1726442707511,0.00011,59386.0,59385.0,0.841962]
[1726442707719,0.00817279,59386.0,59385.0,0.841962]
[1726442707931,0.00011,59386.0,59385.0,1.178747]
[1726442708251,0.0038979,59394.0,59390.0,0.336757]
[1726442708472,0.29494524,59391.0,59390.0,0.841892]
[1726442708687,0.0038979,59394.0,59385.0,0.06290336]
[1726442708688,0.0038979,59394.0,59393.0,0.50511]
[1726442708894,0.0038979,59394.0,59393.0,0.84185]
[1726442709102,0.0038979,59394.0,59393.0,0.926035]
[1726442709322,0.0038979,59394.0,59393.0,1.262775]
[1726442709559,0.0038979,59394.0,59393.0,0.926035]
[1726442710404,0.0038979,59394.0,59393.0,1.262775]
[1726442711459,0.0038979,59394.0,59393.0,1.288775]
[1726442712175,0.0038979,59394.0,59393.0,1.20459]
[1726442713042,0.0038979,59394.0,59393.0,1.20159]
[1726442713478,0.0038979,59394.0,59389.0,0.336759]
[1726442713731,0.00420947,59393.0,59370.0,0.00164]
[1726442713943,0.3406339,59394.0,59370.0,0.00164]
[1726442713944,0.29494524,59374.0,59373.0,0.168426]
[1726442714165,0.29494524,59374.0,59373.0,0.505279]
[1726442714379,0.3228,59377.0,59376.0,0.505254]
[1726442714582,0.3228,59377.0,59376.0,0.84209]
[1726442714787,0.33092907,59377.0,59376.0,0.84209]
[1726442715407,0.33092907,59377.0,59376.0,0.84109]
[1726442715818,0.62587431,59377.0,59376.0,0.84109]
[1726442716027,0.62687431,59377.0,59376.0,0.85409]
[1726442716235,0.62687431,59377.0,59376.0,0.180418]
[1726442716489,0.62687431,59377.0,59370.0,0.00164]
[1726442716734,0.29494524,59371.0,59370.0,0.00164]
[1726442716967,0.30300167,59371.0,59370.0,0.506945]
[1726442717184,0.30300167,59371.0,59370.0,0.170075]
[1726442718069,0.30300167,59371.0,59370.0,0.176075]
[1726442718283,0.30300167,59371.0,59370.0,0.512945]
[1726442718485,0.30300167,59371.0,59370.0,0.506945]
[1726442718688,0.30300167,59371.0,59370.0,0.512945]
[1726442718901,0.00805643,59371.0,59370.0,0.9347979]
[1726442719115,0.00805643,59371.0,59370.0,0.849815]
[1726442719393,0.29494524,59376.0,59375.0,0.168421]
[1726442719633,0.29494524,59376.0,59375.0,0.505263]
[1726442719846,0.29494524,59376.0,59375.0,0.168421]
[1726442720062,0.168421,59375.0,59371.0,0.168431]
[1726442720273,0.168421,59375.0,59370.0,0.00764]
[1726442720478,0.29494524,59371.0,59370.0,0.506944]
[1726442720701,0.29594524,59371.0,59370.0,0.516944]
[1726442720946,0.29494524,59371.0,59370.0,0.506944]
[1726442721176,0.29494524,59371.0,59370.0,0.843814]
[1726442721389,0.29494524,59376.0,59375.0,0.167419]
[1726442721884,0.29494524,59376.0,59375.0,0.166419]
[1726442722088,0.29494524,59376.0,59373.0,0.168425]
[1726442722296,0.29494524,59376.0,59373.0,0.168423]
[1726442722526,0.29494524,59376.0,59374.0,0.168422]
[1726442724028,0.3228,59377.0,59374.0,0.168422]
[1726442724029,0.19665433,59375.0,59374.0,0.168422]
[1726442724241,0.19665433,59375.0,59372.0,0.168427]
[1726442724725,0.19665433,59375.0,59374.0,0.012]
[1726442725160,0.19665433,59375.0,59373.0,0.168426]
[1726442725367,0.19765433,59375.0,59373.0,0.168426]
[1726442725581,0.19665433,59375.0,59373.0,0.168426]
[1726442725785,0.19665433,59375.0,59374.0,0.168423]
[1726442726051,0.19665433,59375.0,59370.0,0.00164]
[1726442726052,0.19765433,59375.0,59370.0,0.00164]
[1726442726510,0.168424,59374.0,59370.0,0.00164]
[1726442726722,0.36607633,59375.0,59374.0,0.00164]